Workbook

Sheet Riskk (hidden)
A1: linda | B1: UPSW | H1: =COUNT(H3:H20) -> 0 | I1: FALSE
B2: Userid | H2: Main/sub | I2: Caption | J2: On Action | K2: NewGroup | M2: 6 mths b4 | N2: 2015-03-31 | P2: Company | Q2: TA
A3: 3 | B3: UserLevel | S3: TACP
A4: 2006-05-09T11:19:39 | B4: LoginTime | S4: TADF
B5: LogoutTime | S5: TAEURO
S6: TAGAAF
S7: TAGTF
S8: TASTIA
S9: TAACCI
S10: TAAUII
S11: TAAUSI
A25: =(SUMIF(#REF!,"=CSHMYR",#REF!)+SUM(#REF!))/1000000 -> 

Sheet Login (hidden)
B2: Riskk . Com
B3: Sdn Bhd (CN 388306K)
H4: Box 389, Lot 7.16, Wisma Central, Jln Ampang, 50450 Kuala Lumpur
B9: EXCEL EQUITY HOLDING REPORT
J18: `

Sheet Main
H2: * Please select sheet(s) to print
H3: Sheets | I3: YES/NO
C4: Reports Details | H4: BMSB-Costing | I4: NO
H5: Purchase | I5: NO
H6: Sale | I6: NO
C7: Company Name: | D7: LABUAN RE
C9: Company ID: | D9: LR
C11: Date: | D11: 2015-08-31
C13: End of Last Year: | D13: =DATE(YEAR(ValueDate)-1,12,31) -> 2014-12-31

Sheet BMSB-Costing
A1: ="Investments on the Main Board of Bursa Malaysia Securities Berhad LABUAN RE'S EXISTING PORTFOLIO AS AT " & TEXT(ValueDate,"dd-mmm-yyyy") -> Investments on the Main Board of Bursa Malaysia Securities Berhad LABUAN RE'S EXISTING PORTFOLIO AS AT 31-Aug-2015
A2: No. | B2: Name of Company | C2: FM | D2: Quantity | E2: Cost/Unit (RM) | F2: Cost (RM) | G2: Market Price/ Unit (RM) | H2: Market Value (RM) | I2: Unrealised Gains/ (Losses) (RM) | J2: Unrealised Gains/ (Losses) (%) | K2: ="Price as at " & TEXT(BOM,"dd-mmm-yyyyy") & " (RM)" -> Price as at 31-Dec-2014 (RM) | L2: Dividend Yield | M2: Bloomberg's Target Price | N2: PE | O2: Sector Average PE | P2: Beta | Q2: Corporate Action Details
A3: CONVENTIONAL FUND
A4: Investment Stocks
A5: 1 | B5: Malayan Banking Berhad | D5: 359300 | E5: 9.152 | F5: 3288316.05 | G5: 8.75 | H5: 3143875 | I5: -144441.05 | J5: -4.39 | K5: 9.16
A6: 2 | B6: Boustead Plantations Bhd | D6: 781600 | E6: 1.4986 | F6: 1171310.36 | G6: 1.29 | H6: 1008264 | I6: -163046.36 | J6: -13.91 | K6: 1.45
A7: 3 | B7: Boustead Holdings Berhad | D7: 100456 | E7: 4.4667 | F7: 448713.38 | G7: 3.78 | H7: 379723.68 | I7: -68989.7 | J7: -15.37 | K7: 4.76
A8: 4 | B8: UEM Edgenta Berhad | D8: 100000 | E8: 2.9518 | F8: 295185.18 | G8: 3.12 | H8: 312000 | I8: 16814.82 | J8: 5.69
A9: 5 | B9: Malakoff Corporation Berhad | D9: 180000 | E9: 1.819 | F9: 327434.4 | G9: 1.43 | H9: 257400 | I9: -70034.4 | J9: -21.38
A10: 6 | B10: Westports Holdings Berhad | D10: 60000 | E10: 4.17 | F10: 250205.28 | G10: 4.17 | H10: 250200 | I10: -5.28 | J10: 0 | K10: 3.35
A11: 7 | B11: Mah Sing Group Berhad | D11: 164997 | E11: 1.4946 | F11: 246611.48 | G11: 1.38 | H11: 227695.86 | I11: -18915.62 | J11: -7.67 | K11: 2.25
A12: 8 | B12: Inari Amertron Bhd | D12: 15000 | E12: 2.7734 | F12: 41602.17 | G12: 3.1 | H12: 46500 | I12: 4897.83 | J12: 11.77 | K12: 2.54
D13: 1761353 | F13: 6069378.3 | H13: 5625658.54 | I13: -443719.76 | J13: -45.26
A14: Trading Stocks
A15: 1 | B15: Sunway Construction Group Bhd | D15: 1395000 | E15: 1.2 | F15: 1674000 | G15: 1.07 | H15: 1492650 | I15: -181350 | J15: -10.83
A16: 2 | B16: Axiata Group Berhad | D16: 40230 | E16: 6.2333 | F16: 250768.4 | G16: 6.13 | H16: 246609.9 | I16: -4158.5 | J16: -1.65 | K16: 7.05
A17: 3 | B17: Tropicana Corp Berhad | D17: 267330 | E17: 1.041 | F17: 278299.75 | G17: 0.875 | H17: 233913.75 | I17: -44386 | J17: -15.94 | K17: 1.06
A18: 4 | B18: Eastern & Oriental Berhad | D18: 115500 | E18: 2.1233 | F18: 245246.13 | G18: 1.5 | H18: 173250 | I18: -71996.13 | J18: -29.35 | K18: 2.25
A19: 5 | B19: Gadang Holdings Berhad | D19: 102400 | E19: 1.6106 | F19: 164932.82 | G19: 1.18 | H19: 120832 | I19: -44100.82 | J19: -26.73 | K19: 1.35
A20: 6 | B20: SP Setia Berhad | D20: 11000 | E20: 2.8732 | F20: 31605.88 | G20: 3.09 | H20: 33990 | I20: 2384.12 | J20: 7.54 | K20: 3.3
D21: 1931460 | F21: 2644852.98 | H21: 2301245.65 | I21: -343607.33 | J21: -76.96
A22: REITS
A23: 1 | B23: IGB REIT | D23: 1447400 | E23: 1.3133 | F23: 1900874.58 | G23: 1.31 | H23: 1896094 | I23: -4780.58 | J23: -0.25 | K23: 1.3
A24: 2 | B24: AmFirst REIT | D24: 2146500 | E24: 0.8824 | F24: 1894077.67 | G24: 0.775 | H24: 1663537.5 | I24: -230540.17 | J24: -12.17 | K24: 0.905
A25: 3 | B25: AmanahRaya REIT | D25: 1376500 | E25: 0.8896 | F25: 1224567.56 | G25: 0.82 | H25: 1128730 | I25: -95837.56 | J25: -7.82 | K25: 0.825
A26: 4 | B26: Capitamalls Malaysia Trust | D26: 593400 | E26: 1.4625 | F26: 867855.86 | G26: 1.32 | H26: 783288 | I26: -84567.86 | J26: -9.74 | K26: 1.4
A27: 5 | B27: YTL Hospitality REIT | D27: 724900 | E27: 0.9607 | F27: 696465.63 | G27: 1.01 | H27: 732149 | I27: 35683.37 | J27: 5.12 | K27: 0.995
A28: 6 | B28: UOA-REIT | D28: 208300 | E28: 1.2867 | F28: 268039.31 | G28: 1.5 | H28: 312450 | I28: 44410.69 | J28: 16.56 | K28: 1.42
A29: 7 | B29: Axis REIT | D29: 93300 | E29: 3.3178 | F29: 309555.95 | G29: 3.27 | H29: 305091 | I29: -4464.95 | J29: -1.44 | K29: 3.61
A30: 8 | B30: Al-Aqar Healthcare REIT | D30: 186100 | E30: 1.2673 | F30: 235857.08 | G30: 1.34 | H30: 249374 | I30: 13516.92 | J30: 5.73 | K30: 1.38
A31: 9 | B31: Sunway REIT | D31: 59600 | E31: 1.3138 | F31: 78305.79 | G31: 1.49 | H31: 88804 | I31: 10498.21 | J31: 13.4 | K31: 1.5
D32: 6836000 | F32: 7475599.43 | H32: 7159517.5 | I32: -316081.93 | J32: 9.39
B34: Total Conventional Fund | D34: 10528813 | F34: 16189830.71 | H34: 15086421.69 | I34: -1103409.02 | J34: -112.83
A35: Retakaful Fund
A36: Investment Stocks
A37: 1 | B37: Boustead Plantations Bhd | D37: 269400 | E37: 1.3744 | F37: 370270.72 | G37: 1.29 | H37: 347526 | I37: -22744.72 | J37: -6.14 | K37: 1.45
A38: 2 | B38: Westports Holdings Berhad | D38: 80000 | E38: 4.1714 | F38: 333715.14 | G38: 4.17 | H38: 333600 | I38: -115.14 | J38: -0.03 | K38: 3.35
A39: 3 | B39: UEM Edgenta Berhad | D39: 75000 | E39: 2.9531 | F39: 221485.69 | G39: 3.12 | H39: 234000 | I39: 12514.31 | J39: 5.65
A40: 4 | B40: Mah Sing Group Berhad | D40: 132500 | E40: 1.5137 | F40: 200574.07 | G40: 1.38 | H40: 182850 | I40: -17724.07 | J40: -8.83 | K40: 2.25
A41: 5 | B41: Malakoff Corporation Berhad | D41: 20000 | E41: 1.819 | F41: 36381.6 | G41: 1.43 | H41: 28600 | I41: -7781.6 | J41: -21.38
D42: 576900 | F42: 1162427.22 | H42: 1126576 | I42: -35851.22 | J42: -30.73
A43: Trading Stocks
A44: 1 | B44: IJM Corp Bhd | D44: 40000 | E44: 6.4502 | F44: 258010 | G44: 6.28 | H44: 251200 | I44: -6810 | J44: -2.63 | K44: 6.57
A45: 2 | B45: Sunway Construction Group Bhd | D45: 190000 | E45: 1.1721 | F45: 222711.5 | G45: 1.07 | H45: 203300 | I45: -19411.5 | J45: -8.71
A46: 3 | B46: Eastern & Oriental Berhad | D46: 97600 | E46: 2.0439 | F46: 199493.4 | G46: 1.5 | H46: 146400 | I46: -53093.4 | J46: -26.61 | K46: 2.25
A47: 4 | B47: Gadang Holdings Berhad | D47: 35000 | E47: 1.3415 | F47: 46955 | G47: 1.18 | H47: 41300 | I47: -5655 | J47: -12.04 | K47: 1.35
D48: 362600 | F48: 727169.9 | H48: 642200 | I48: -84969.9 | J48: -49.99
A49: REITS
A50: 1 | B50: Al-Aqar Healthcare REIT | D50: 160000 | E50: 1.3314 | F50: 213028.59 | G50: 1.34 | H50: 214400 | I50: 1371.41 | J50: 0.64 | K50: 1.38
A51: 2 | B51: Axis REIT | D51: 20600 | E51: 3.2712 | F51: 67387.73 | G51: 3.27 | H51: 67362 | I51: -25.73 | J51: -0.03 | K51: 3.61
D52: 180600 | F52: 280416.32 | H52: 281762 | I52: 1345.68 | J52: 0.61
B54: Total Retakaful Fund | D54: 1120100 | F54: 2170013.44 | H54: 2050538 | I54: -119475.44 | J54: -80.11
B55: GRAND TOTAL | D55: 11648913 | F55: 18359844.15 | H55: 17136959.69 | I55: -1222884.46 | J55: -192.94

Sheet Purchase
A1: MSEB
A2: Securities Purchased | M2: A | N2: B | O2: C | R2: D
A3: No. | B3: Name of Company | C3: FM | D3: CFT | E3: Broker | F3: Trade | G3: Settlement | H3: Cost/share | I3: Number of | J3: Total Costs | M3: Charges | V3: Custodian Fee | X3: Cost (exc Custodian fee for Trading stock)
D4: CFI | F4: Date | G4: Date | H4: bought | I4: Shares | L4: Gross | M4: 0.002 | N4: 0.0003 | O4: =0.1/100 -> 0.001 | P4: Total | R4: 0.06 | S4: Total | V4: CFT | W4: RFT | X4: CFI | Y4: CFT | Z4: RFI | AA4: RFT | AB4: OI
D5: RFT | M5: min = 40 | O5: max = 200 | P5: (excl GST) | S5: (incl GST)
D6: RFI | M6: brok | N6: com | O6: stamp | R6: GST
A9: Jan16
A10: 1 | B10: DiGi.Com Bhd | C10: NG | D10: CFI | E10: CIMB | F10: 2016-01-05 | G10: 2016-01-08 | H10: 5.2438 | I10: 8000 | J10: =+S10 -> 42094.68 | L10: =+I10*H10 -> 41950.4 | M10: =IF((ROUND($L10*0.2%,2))<40,40,ROUND($L10*0.2%,2)) -> 83.9 | N10: =+ROUNDUP($L10*0.03%,2) -> 12.59 | O10: =IF((ROUNDUP($L10*0.1%,0))>200,200,ROUNDUP($L10*0.1%,0)) -> 42 | P10: =+L10+M10+N10+O10 -> 42088.89 | R10: =+ROUND(M10*6%,2)+ROUND(N10*6%,2) -> 5.79 | S10: =+L10+M10+N10+O10+R10 -> 42094.68
A11: =+A10+1 -> 2 | L11: =+I11*H11 -> 0 | N11: =+ROUNDUP($L11*0.03%,2) -> 0 | O11: =IF((ROUNDUP($L11*0.1%,0))>200,200,ROUNDUP($L11*0.1%,0)) -> 0 | P11: =+L11+M11+N11+O11 -> 0 | R11: =+ROUND(M11*6%,2)+ROUND(N11*6%,2) -> 0 | S11: =+L11+M11+N11+O11+R11 -> 0
A12: =+A11+1 -> 3 | L12: =+I12*H12 -> 0 | N12: 0 | O12: 0 | P12: =+L12+M12+N12+O12 -> 0 | R12: =+ROUND(M12*6%,2)+ROUND(N12*6%,2) -> 0 | S12: =+L12+M12+N12+O12+R12 -> 0
I14: =SUM(I10:I13) -> 8000 | J14: =SUM(J10:J13) -> 42094.68 | P14: =SUM(P10:P13) -> 42088.89 | S14: =SUM(S10:S13) -> 42094.68
A17: Type of fund: | E17: Brokers: | V17: =SUM(V9:V9) -> 0 | W17: 0 | X17: 0 | Y17: 0 | Z17: 0 | AA17: 0 | AB17: 0
B18: CFT - Conventional Fund for Trading | D18: 0.002 | E18: MIB - Maybank Investment Bank Berhad
B19: CFI - Conventional Fund for Investment | D19: 0.002 | E19: RHB - RHB Investment Bank
B20: RFT - Retakaful Fund for Trading | D20: 0.002 | E20: Affin - Affin Hwang Investment Bank
B21: RFI - Retakaful Fund for Investment | D21: 0.0018 | E21: MIDF - MIDF Amanah Investment Bank
B22: OI/R - Other Investments/REITs for RF | D22: 0.002 | E22: CIMB - CIMB Investment Bank
B23: OI/C - Other Investments/REITs for CF

Sheet Sale
A1: Labuan Re - In House
A3: LIST OF SECURITIES SOLD - MALAYSIAN EQUITIES | AQ3: Previous
A4: No. | B4: Name of Company | C4: FM | D4: CFT | E4: Broker | F4: Trade | G4: Settlement | H4: Number of | I4: Book Costs | J4: Unit cost | K4: Sales Proceeds | L4: Realised | M4: Realised | P4: A | Q4: B | R4: C | U4: D | Y4: Sales Proceeds | AD4: Book Costs | AI4: Realised Gains/(Loss) | AN4: Custodian Fee | AQ4: Month's | AR4: AFS Reserve Trf to PNL
D5: CFI | F5: Date | G5: Date | H5: Shares | L5: Gains/ | M5: Gains/ | N5: selling price | O5: Gross | P5: Brok | Q5: Comm | R5: Stamp | S5: Total | U5: GST | V5: Total | Y5: CFI | Z5: CFT | AA5: RFI | AB5: RFT | AC5: OI | AD5: CFI | AE5: CFT | AF5: RFI | AG5: RFT | AH5: OI | AI5: CFI | AJ5: CFT | AK5: RFI | AL5: RFT | AM5: OI | AN5: CFT | AO5: RFT | AQ5: Realised | AR5: CFI | AS5: RFI | AT5: OI
D6: RFT | L6: (Loss) | M6: (Loss) | P6: 0.002 | Q6: 0.0003 | R6: 0.0001 | S6: (excl GST) | U6: 0.06 | V6: (incl GST) | AQ6: Gains
D7: RFI | I7: RM | J7: RM | K7: RM | L7: RM | M7: % | U7: from A & B | AQ7: per share
A9: Jan16
A10: 1 | B10: Tropicana Corp Berhad | C10: NG | D10: RFT | E10: Affin | F10: 2016-01-05 | G10: 2016-01-08 | H10: 20000 | I10: 18800 | J10: =I10/H10 -> 0.94 | K10: =+O10 -> 19950 | L10: =K10-I10 -> 1150 | M10: =L10/I10 -> 0.06117021277 | N10: 0.9975 | O10: =+ROUND(H10*N10,2) -> 19950 | P10: =IF((ROUND($O10*0.2%,2))<40,40,ROUND($O10*0.2%,2)) -> 40 | Q10: =ROUNDUP($O10*0.03%,2) -> 5.99 | R10: =IF((ROUNDUP($O10*0.1%,0))>200,200,ROUNDUP($O10*0.1%,0)) -> 20 | S10: =+O10-P10-Q10-R10 -> 19884.01 | U10: =+ROUND(P10*6%,2)+ROUND(Q10*6%,2) -> 2.76 | V10: =+O10-P10-Q10-R10-U10 -> 19881.25
A11: =+A10+1 -> 2 | J11: =I11/H11 ->  | K11: =+O11 -> 0 | L11: =K11-I11 -> 0 | M11: =L11/I11 ->  | O11: =+ROUND(H11*N11,2) -> 0 | Q11: =ROUNDUP($O11*0.03%,2) -> 0 | R11: =IF((ROUNDUP($O11*0.1%,0))>200,200,ROUNDUP($O11*0.1%,0)) -> 0 | S11: =+O11-P11-Q11-R11 -> 0 | U11: =+ROUND(P11*6%,2)+ROUND(Q11*6%,2) -> 0 | V11: =+O11-P11-Q11-R11-U11 -> 0
A12: =+A11+1 -> 3 | J12: =I12/H12 ->  | K12: =+O12 -> 0 | L12: =K12-I12 -> 0 | M12: =L12/I12 ->  | O12: =+ROUND(H12*N12,2) -> 0 | Q12: =ROUNDUP($O12*0.03%,2) -> 0 | R12: =IF((ROUNDUP($O12*0.1%,0))>200,200,ROUNDUP($O12*0.1%,0)) -> 0 | S12: =+O12-P12-Q12-R12 -> 0 | U12: =+ROUND(P12*6%,2)+ROUND(Q12*6%,2) -> 0 | V12: =+O12-P12-Q12-R12-U12 -> 0
H14: =SUM(H10:H13) -> 20000 | I14: =SUM(I10:I13) -> 18800 | K14: =SUM(K10:K13) -> 19950 | L14: =SUM(L10:L13) -> 1150 | M14: =+L14/I14 -> 0.06117021277
A18: Type of fund: | E18: Brokers: | Y18: =SUM(Y9:Y9) -> 0 | Z18: 0 | AA18: 0 | AB18: 0 | AC18: 0 | AD18: 0 | AE18: 0 | AF18: 0 | AG18: 0 | AH18: 0 | AI18: 0 | AJ18: 0 | AK18: 0 | AL18: 0 | AM18: 0 | AN18: 0 | AO18: 0 | AR18: =SUM(AR8:AR17) -> 0 | AS18: =SUM(AS8:AS17) -> 0 | AT18: =SUM(AT8:AT17) -> 0
B19: CFT - Conventional Fund for Trading | E19: 0.002 | F19: MIB - Maybank Investment Bank
B20: CFI - Conventional Fund for Investment | E20: 0.002 | F20: RHB - RHB Investment Bank
B21: RFT - Retakaful Fund for Trading | E21: 0.002 | F21: Affin - Affin Hwang Investment Bank
B22: RFI - Retakaful Fund for Investment | E22: 0.0018 | F22: MIDF - MIDF Amanah Investment Bank
B23: OI/R - Other Investments/REITs for RF | E23: 0.002 | F23: CIMB - CIMB Investment Bank
B24: OI/C - Other Investments/REITs for CF

Sheet InMaster (hidden)
B1: =H1&G1 -> 
C2: RankNO | D2: Name | E2: HistoryDate | F2: qproductType | G2: qAssetClass | H2: qFundCode | I2: qStockCode | J2: UnitFaceValue | K2: CostFC | L2: CostPerUnit | M2: MarketValueFC | N2: MarketPerUnit | O2: rGnL | P2: PercGnL | Q2: Description | R2: Price
C3: 1 | D3: Investment_Stocks_C | E3: 2015-08-31 | F3: EQT | G3: EQT | H3: IAFSMYR | I3: 1155 | J3: 359300 | K3: 3288316.05 | L3: 9.152 | M3: 3143875 | N3: 8.75 | O3: -144441.05 | P3: -4.39 | Q3: Malayan Banking Berhad | R3: 9.16
C4: 2 | D4: Investment_Stocks_C | E4: 2015-08-31 | F4: EQT | G4: EQT | H4: IAFSMYR | I4: 5254 | J4: 781600 | K4: 1171310.36 | L4: 1.4986 | M4: 1008264 | N4: 1.29 | O4: -163046.36 | P4: -13.91 | Q4: Boustead Plantations Bhd | R4: 1.45
C5: 3 | D5: Investment_Stocks_C | E5: 2015-08-31 | F5: EQT | G5: EQT | H5: IAFSMYR | I5: 2771 | J5: 100456 | K5: 448713.38 | L5: 4.4667 | M5: 379723.68 | N5: 3.78 | O5: -68989.7 | P5: -15.37 | Q5: Boustead Holdings Berhad | R5: 4.76
C6: 4 | D6: Investment_Stocks_C | E6: 2015-08-31 | F6: EQT | G6: EQT | H6: IAFSMYR | I6: 1368 | J6: 100000 | K6: 295185.18 | L6: 2.9518 | M6: 312000 | N6: 3.12 | O6: 16814.82 | P6: 5.69 | Q6: UEM Edgenta Berhad
C7: 5 | D7: Investment_Stocks_C | E7: 2015-08-31 | F7: EQT | G7: EQT | H7: IAFSMYR | I7: 5264 | J7: 180000 | K7: 327434.4 | L7: 1.819 | M7: 257400 | N7: 1.43 | O7: -70034.4 | P7: -21.38 | Q7: Malakoff Corporation Berhad
C8: 6 | D8: Investment_Stocks_C | E8: 2015-08-31 | F8: EQT | G8: EQT | H8: IAFSMYR | I8: 5246 | J8: 60000 | K8: 250205.28 | L8: 4.17 | M8: 250200 | N8: 4.17 | O8: -5.28 | P8: 0 | Q8: Westports Holdings Berhad | R8: 3.35
C9: 7 | D9: Investment_Stocks_C | E9: 2015-08-31 | F9: EQT | G9: EQT | H9: IAFSMYR | I9: 8583 | J9: 164997 | K9: 246611.48 | L9: 1.4946 | M9: 227695.86 | N9: 1.38 | O9: -18915.62 | P9: -7.67 | Q9: Mah Sing Group Berhad | R9: 2.25
C10: 8 | D10: Investment_Stocks_C | E10: 2015-08-31 | F10: EQT | G10: EQT | H10: IAFSMYR | I10: 166 | J10: 15000 | K10: 41602.17 | L10: 2.7734 | M10: 46500 | N10: 3.1 | O10: 4897.83 | P10: 11.77 | Q10: Inari Amertron Bhd | R10: 2.54
C11: 1 | D11: Investment_Stocks_R | E11: 2015-08-31 | F11: EQT | G11: EQT | H11: TIAFSMYR | I11: 5254 | J11: 269400 | K11: 370270.72 | L11: 1.3744 | M11: 347526 | N11: 1.29 | O11: -22744.72 | P11: -6.14 | Q11: Boustead Plantations Bhd | R11: 1.45
C12: 2 | D12: Investment_Stocks_R | E12: 2015-08-31 | F12: EQT | G12: EQT | H12: TIAFSMYR | I12: 5246 | J12: 80000 | K12: 333715.14 | L12: 4.1714 | M12: 333600 | N12: 4.17 | O12: -115.14 | P12: -0.03 | Q12: Westports Holdings Berhad | R12: 3.35
C13: 3 | D13: Investment_Stocks_R | E13: 2015-08-31 | F13: EQT | G13: EQT | H13: TIAFSMYR | I13: 1368 | J13: 75000 | K13: 221485.69 | L13: 2.9531 | M13: 234000 | N13: 3.12 | O13: 12514.31 | P13: 5.65 | Q13: UEM Edgenta Berhad
C14: 4 | D14: Investment_Stocks_R | E14: 2015-08-31 | F14: EQT | G14: EQT | H14: TIAFSMYR | I14: 8583 | J14: 132500 | K14: 200574.07 | L14: 1.5137 | M14: 182850 | N14: 1.38 | O14: -17724.07 | P14: -8.83 | Q14: Mah Sing Group Berhad | R14: 2.25
C15: 5 | D15: Investment_Stocks_R | E15: 2015-08-31 | F15: EQT | G15: EQT | H15: TIAFSMYR | I15: 5264 | J15: 20000 | K15: 36381.6 | L15: 1.819 | M15: 28600 | N15: 1.43 | O15: -7781.6 | P15: -21.38 | Q15: Malakoff Corporation Berhad
C16: 1 | D16: REITS_C | E16: 2015-08-31 | F16: EQT | G16: OTH | H16: IAFSMYR | I16: 5227 | J16: 1447400 | K16: 1900874.58 | L16: 1.3133 | M16: 1896094 | N16: 1.31 | O16: -4780.58 | P16: -0.25 | Q16: IGB REIT | R16: 1.3
C17: 2 | D17: REITS_C | E17: 2015-08-31 | F17: EQT | G17: OTH | H17: IAFSMYR | I17: 5120 | J17: 2146500 | K17: 1894077.67 | L17: 0.8824 | M17: 1663537.5 | N17: 0.775 | O17: -230540.17 | P17: -12.17 | Q17: AmFirst REIT | R17: 0.905
C18: 3 | D18: REITS_C | E18: 2015-08-31 | F18: EQT | G18: OTH | H18: IAFSMYR | I18: 5127 | J18: 1376500 | K18: 1224567.56 | L18: 0.8896 | M18: 1128730 | N18: 0.82 | O18: -95837.56 | P18: -7.82 | Q18: AmanahRaya REIT | R18: 0.825
C19: 4 | D19: REITS_C | E19: 2015-08-31 | F19: EQT | G19: OTH | H19: IAFSMYR | I19: 5180 | J19: 593400 | K19: 867855.86 | L19: 1.4625 | M19: 783288 | N19: 1.32 | O19: -84567.86 | P19: -9.74 | Q19: Capitamalls Malaysia Trust | R19: 1.4
C20: 5 | D20: REITS_C | E20: 2015-08-31 | F20: EQT | G20: OTH | H20: IAFSMYR | I20: 5109 | J20: 724900 | K20: 696465.63 | L20: 0.9607 | M20: 732149 | N20: 1.01 | O20: 35683.37 | P20: 5.12 | Q20: YTL Hospitality REIT | R20: 0.995
C21: 6 | D21: REITS_C | E21: 2015-08-31 | F21: EQT | G21: OTH | H21: IAFSMYR | I21: 5110 | J21: 208300 | K21: 268039.31 | L21: 1.2867 | M21: 312450 | N21: 1.5 | O21: 44410.69 | P21: 16.56 | Q21: UOA-REIT | R21: 1.42
C22: 7 | D22: REITS_C | E22: 2015-08-31 | F22: EQT | G22: OTH | H22: IAFSMYR | I22: 5106 | J22: 93300 | K22: 309555.95 | L22: 3.3178 | M22: 305091 | N22: 3.27 | O22: -4464.95 | P22: -1.44 | Q22: Axis REIT | R22: 3.61
C23: 8 | D23: REITS_C | E23: 2015-08-31 | F23: EQT | G23: OTH | H23: IAFSMYR | I23: 5116 | J23: 186100 | K23: 235857.08 | L23: 1.2673 | M23: 249374 | N23: 1.34 | O23: 13516.92 | P23: 5.73 | Q23: Al-Aqar Healthcare REIT | R23: 1.38
C24: 9 | D24: REITS_C | E24: 2015-08-31 | F24: EQT | G24: OTH | H24: IAFSMYR | I24: 5176 | J24: 59600 | K24: 78305.79 | L24: 1.3138 | M24: 88804 | N24: 1.49 | O24: 10498.21 | P24: 13.4 | Q24: Sunway REIT | R24: 1.5
C25: 1 | D25: REITS_R | E25: 2015-08-31 | F25: EQT | G25: OTH | H25: TIAFSMYR | I25: 5116 | J25: 160000 | K25: 213028.59 | L25: 1.3314 | M25: 214400 | N25: 1.34 | O25: 1371.41 | P25: 0.64 | Q25: Al-Aqar Healthcare REIT | R25: 1.38
C26: 2 | D26: REITS_R | E26: 2015-08-31 | F26: EQT | G26: OTH | H26: TIAFSMYR | I26: 5106 | J26: 20600 | K26: 67387.73 | L26: 3.2712 | M26: 67362 | N26: 3.27 | O26: -25.73 | P26: -0.03 | Q26: Axis REIT | R26: 3.61
C27: 1 | D27: Trading_Stock_C | E27: 2015-08-31 | F27: EQT | G27: EQT | H27: IHFTMYR | I27: 5263 | J27: 1395000 | K27: 1674000 | L27: 1.2 | M27: 1492650 | N27: 1.07 | O27: -181350 | P27: -10.83 | Q27: Sunway Construction Group Bhd
C28: 2 | D28: Trading_Stock_C | E28: 2015-08-31 | F28: EQT | G28: EQT | H28: IHFTMYR | I28: 6888 | J28: 40230 | K28: 250768.4 | L28: 6.2333 | M28: 246609.9 | N28: 6.13 | O28: -4158.5 | P28: -1.65 | Q28: Axiata Group Berhad | R28: 7.05
C29: 3 | D29: Trading_Stock_C | E29: 2015-08-31 | F29: EQT | G29: EQT | H29: IHFTMYR | I29: 5401 | J29: 267330 | K29: 278299.75 | L29: 1.041 | M29: 233913.75 | N29: 0.875 | O29: -44386 | P29: -15.94 | Q29: Tropicana Corp Berhad | R29: 1.06
C30: 4 | D30: Trading_Stock_C | E30: 2015-08-31 | F30: EQT | G30: EQT | H30: IHFTMYR | I30: 3417 | J30: 115500 | K30: 245246.13 | L30: 2.1233 | M30: 173250 | N30: 1.5 | O30: -71996.13 | P30: -29.35 | Q30: Eastern & Oriental Berhad | R30: 2.25
C31: 5 | D31: Trading_Stock_C | E31: 2015-08-31 | F31: EQT | G31: EQT | H31: IHFTMYR | I31: 9261 | J31: 102400 | K31: 164932.82 | L31: 1.6106 | M31: 120832 | N31: 1.18 | O31: -44100.82 | P31: -26.73 | Q31: Gadang Holdings Berhad | R31: 1.35
C32: 6 | D32: Trading_Stock_C | E32: 2015-08-31 | F32: EQT | G32: EQT | H32: IHFTMYR | I32: 8664 | J32: 11000 | K32: 31605.88 | L32: 2.8732 | M32: 33990 | N32: 3.09 | O32: 2384.12 | P32: 7.54 | Q32: SP Setia Berhad | R32: 3.3
C33: 1 | D33: Trading_Stock_R | E33: 2015-08-31 | F33: EQT | G33: EQT | H33: TIHFTMYR | I33: 3336 | J33: 40000 | K33: 258010 | L33: 6.4502 | M33: 251200 | N33: 6.28 | O33: -6810 | P33: -2.63 | Q33: IJM Corp Bhd | R33: 6.57
C34: 2 | D34: Trading_Stock_R | E34: 2015-08-31 | F34: EQT | G34: EQT | H34: TIHFTMYR | I34: 5263 | J34: 190000 | K34: 222711.5 | L34: 1.1721 | M34: 203300 | N34: 1.07 | O34: -19411.5 | P34: -8.71 | Q34: Sunway Construction Group Bhd
C35: 3 | D35: Trading_Stock_R | E35: 2015-08-31 | F35: EQT | G35: EQT | H35: TIHFTMYR | I35: 3417 | J35: 97600 | K35: 199493.4 | L35: 2.0439 | M35: 146400 | N35: 1.5 | O35: -53093.4 | P35: -26.61 | Q35: Eastern & Oriental Berhad | R35: 2.25
C36: 4 | D36: Trading_Stock_R | E36: 2015-08-31 | F36: EQT | G36: EQT | H36: TIHFTMYR | I36: 9261 | J36: 35000 | K36: 46955 | L36: 1.3415 | M36: 41300 | N36: 1.18 | O36: -5655 | P36: -12.04 | Q36: Gadang Holdings Berhad | R36: 1.35

Sheet InPivot (hidden)
C2: Row Labels | D2: Description | E2: Sum of RankNO | F2: Sum of UnitFaceValue | G2: Sum of CostPerUnit | H2: Sum of CostFC | I2: Sum of MarketPerUnit | J2: Sum of MarketValueFC | K2: Sum of rGnL | L2: Sum of PercGnL | M2: Sum of Price
C3: Investment_Stocks_C | D3: Malayan Banking Berhad | E3: 1 | F3: 359300 | G3: 9.152 | H3: 3288316.05 | I3: 8.75 | J3: 3143875 | K3: -144441.05 | L3: -4.39 | M3: 9.16
C4: Investment_Stocks_C | D4: Boustead Plantations Bhd | E4: 2 | F4: 781600 | G4: 1.4986 | H4: 1171310.36 | I4: 1.29 | J4: 1008264 | K4: -163046.36 | L4: -13.91 | M4: 1.45
C5: Investment_Stocks_C | D5: Boustead Holdings Berhad | E5: 3 | F5: 100456 | G5: 4.4667 | H5: 448713.38 | I5: 3.78 | J5: 379723.68 | K5: -68989.7 | L5: -15.37 | M5: 4.76
C6: Investment_Stocks_C | D6: UEM Edgenta Berhad | E6: 4 | F6: 100000 | G6: 2.9518 | H6: 295185.18 | I6: 3.12 | J6: 312000 | K6: 16814.82 | L6: 5.69
C7: Investment_Stocks_C | D7: Malakoff Corporation Berhad | E7: 5 | F7: 180000 | G7: 1.819 | H7: 327434.4 | I7: 1.43 | J7: 257400 | K7: -70034.4 | L7: -21.38
C8: Investment_Stocks_C | D8: Westports Holdings Berhad | E8: 6 | F8: 60000 | G8: 4.17 | H8: 250205.28 | I8: 4.17 | J8: 250200 | K8: -5.28 | L8: 0 | M8: 3.35
C9: Investment_Stocks_C | D9: Mah Sing Group Berhad | E9: 7 | F9: 164997 | G9: 1.4946 | H9: 246611.48 | I9: 1.38 | J9: 227695.86 | K9: -18915.62 | L9: -7.67 | M9: 2.25
C10: Investment_Stocks_C | D10: Inari Amertron Bhd | E10: 8 | F10: 15000 | G10: 2.7734 | H10: 41602.17 | I10: 3.1 | J10: 46500 | K10: 4897.83 | L10: 11.77 | M10: 2.54
C11: Investment_Stocks_C Total | E11: 36 | F11: 1761353 | G11: 28.3261 | H11: 6069378.3 | I11: 27.02 | J11: 5625658.54 | K11: -443719.76 | L11: -45.26 | M11: 23.51
C12: Trading_Stock_C | D12: Sunway Construction Group Bhd | E12: 1 | F12: 1395000 | G12: 1.2 | H12: 1674000 | I12: 1.07 | J12: 1492650 | K12: -181350 | L12: -10.83
C13: Trading_Stock_C | D13: Axiata Group Berhad | E13: 2 | F13: 40230 | G13: 6.2333 | H13: 250768.4 | I13: 6.13 | J13: 246609.9 | K13: -4158.5 | L13: -1.65 | M13: 7.05
C14: Trading_Stock_C | D14: Tropicana Corp Berhad | E14: 3 | F14: 267330 | G14: 1.041 | H14: 278299.75 | I14: 0.875 | J14: 233913.75 | K14: -44386 | L14: -15.94 | M14: 1.06
C15: Trading_Stock_C | D15: Eastern & Oriental Berhad | E15: 4 | F15: 115500 | G15: 2.1233 | H15: 245246.13 | I15: 1.5 | J15: 173250 | K15: -71996.13 | L15: -29.35 | M15: 2.25
C16: Trading_Stock_C | D16: Gadang Holdings Berhad | E16: 5 | F16: 102400 | G16: 1.6106 | H16: 164932.82 | I16: 1.18 | J16: 120832 | K16: -44100.82 | L16: -26.73 | M16: 1.35
C17: Trading_Stock_C | D17: SP Setia Berhad | E17: 6 | F17: 11000 | G17: 2.8732 | H17: 31605.88 | I17: 3.09 | J17: 33990 | K17: 2384.12 | L17: 7.54 | M17: 3.3
C18: Trading_Stock_C Total | E18: 21 | F18: 1931460 | G18: 15.0814 | H18: 2644852.98 | I18: 13.845 | J18: 2301245.65 | K18: -343607.33 | L18: -76.96 | M18: 15.01
C19: REITS_C | D19: IGB REIT | E19: 1 | F19: 1447400 | G19: 1.3133 | H19: 1900874.58 | I19: 1.31 | J19: 1896094 | K19: -4780.58 | L19: -0.25 | M19: 1.3
C20: REITS_C | D20: AmFirst REIT | E20: 2 | F20: 2146500 | G20: 0.8824 | H20: 1894077.67 | I20: 0.775 | J20: 1663537.5 | K20: -230540.17 | L20: -12.17 | M20: 0.905
C21: REITS_C | D21: AmanahRaya REIT | E21: 3 | F21: 1376500 | G21: 0.8896 | H21: 1224567.56 | I21: 0.82 | J21: 1128730 | K21: -95837.56 | L21: -7.82 | M21: 0.825
C22: REITS_C | D22: Capitamalls Malaysia Trust | E22: 4 | F22: 593400 | G22: 1.4625 | H22: 867855.86 | I22: 1.32 | J22: 783288 | K22: -84567.86 | L22: -9.74 | M22: 1.4
C23: REITS_C | D23: YTL Hospitality REIT | E23: 5 | F23: 724900 | G23: 0.9607 | H23: 696465.63 | I23: 1.01 | J23: 732149 | K23: 35683.37 | L23: 5.12 | M23: 0.995
C24: REITS_C | D24: UOA-REIT | E24: 6 | F24: 208300 | G24: 1.2867 | H24: 268039.31 | I24: 1.5 | J24: 312450 | K24: 44410.69 | L24: 16.56 | M24: 1.42
C25: REITS_C | D25: Axis REIT | E25: 7 | F25: 93300 | G25: 3.3178 | H25: 309555.95 | I25: 3.27 | J25: 305091 | K25: -4464.95 | L25: -1.44 | M25: 3.61
C26: REITS_C | D26: Al-Aqar Healthcare REIT | E26: 8 | F26: 186100 | G26: 1.2673 | H26: 235857.08 | I26: 1.34 | J26: 249374 | K26: 13516.92 | L26: 5.73 | M26: 1.38
C27: REITS_C | D27: Sunway REIT | E27: 9 | F27: 59600 | G27: 1.3138 | H27: 78305.79 | I27: 1.49 | J27: 88804 | K27: 10498.21 | L27: 13.4 | M27: 1.5
C28: REITS_C Total | E28: 45 | F28: 6836000 | G28: 12.6941 | H28: 7475599.43 | I28: 12.835 | J28: 7159517.5 | K28: -316081.93 | L28: 9.39 | M28: 13.335
C29: Investment_Stocks_R | D29: Boustead Plantations Bhd | E29: 1 | F29: 269400 | G29: 1.3744 | H29: 370270.72 | I29: 1.29 | J29: 347526 | K29: -22744.72 | L29: -6.14 | M29: 1.45
C30: Investment_Stocks_R | D30: Westports Holdings Berhad | E30: 2 | F30: 80000 | G30: 4.1714 | H30: 333715.14 | I30: 4.17 | J30: 333600 | K30: -115.14 | L30: -0.03 | M30: 3.35
C31: Investment_Stocks_R | D31: UEM Edgenta Berhad | E31: 3 | F31: 75000 | G31: 2.9531 | H31: 221485.69 | I31: 3.12 | J31: 234000 | K31: 12514.31 | L31: 5.65
C32: Investment_Stocks_R | D32: Mah Sing Group Berhad | E32: 4 | F32: 132500 | G32: 1.5137 | H32: 200574.07 | I32: 1.38 | J32: 182850 | K32: -17724.07 | L32: -8.83 | M32: 2.25
C33: Investment_Stocks_R | D33: Malakoff Corporation Berhad | E33: 5 | F33: 20000 | G33: 1.819 | H33: 36381.6 | I33: 1.43 | J33: 28600 | K33: -7781.6 | L33: -21.38
C34: Investment_Stocks_R Total | E34: 15 | F34: 576900 | G34: 11.8316 | H34: 1162427.22 | I34: 11.39 | J34: 1126576 | K34: -35851.22 | L34: -30.73 | M34: 7.05
C35: Trading_Stock_R | D35: IJM Corp Bhd | E35: 1 | F35: 40000 | G35: 6.4502 | H35: 258010 | I35: 6.28 | J35: 251200 | K35: -6810 | L35: -2.63 | M35: 6.57
C36: Trading_Stock_R | D36: Sunway Construction Group Bhd | E36: 2 | F36: 190000 | G36: 1.1721 | H36: 222711.5 | I36: 1.07 | J36: 203300 | K36: -19411.5 | L36: -8.71
C37: Trading_Stock_R | D37: Eastern & Oriental Berhad | E37: 3 | F37: 97600 | G37: 2.0439 | H37: 199493.4 | I37: 1.5 | J37: 146400 | K37: -53093.4 | L37: -26.61 | M37: 2.25
C38: Trading_Stock_R | D38: Gadang Holdings Berhad | E38: 4 | F38: 35000 | G38: 1.3415 | H38: 46955 | I38: 1.18 | J38: 41300 | K38: -5655 | L38: -12.04 | M38: 1.35
C39: Trading_Stock_R Total | E39: 10 | F39: 362600 | G39: 11.0077 | H39: 727169.9 | I39: 10.03 | J39: 642200 | K39: -84969.9 | L39: -49.99 | M39: 10.17
C40: REITS_R | D40: Al-Aqar Healthcare REIT | E40: 1 | F40: 160000 | G40: 1.3314 | H40: 213028.59 | I40: 1.34 | J40: 214400 | K40: 1371.41 | L40: 0.64 | M40: 1.38
C41: REITS_R | D41: Axis REIT | E41: 2 | F41: 20600 | G41: 3.2712 | H41: 67387.73 | I41: 3.27 | J41: 67362 | K41: -25.73 | L41: -0.03 | M41: 3.61
C42: REITS_R Total | E42: 3 | F42: 180600 | G42: 4.6026 | H42: 280416.32 | I42: 4.61 | J42: 281762 | K42: 1345.68 | L42: 0.61 | M42: 4.99
C43: Grand Total | E43: 130 | F43: 11648913 | G43: 83.5435 | H43: 18359844.15 | I43: 79.73 | J43: 17136959.69 | K43: -1222884.46 | L43: -192.94 | M43: 74.065
